fUSD/lending_fUSD_20240119
["ID","MTS","AMOUNT","RATE_DAILY","PERIOD"]
[312171733,1705678253545,-500.0,0.00022191,2]
[312171734,1705678253555,-500.0,0.00022191,2]
[312171735,1705678253566,-500.0,0.00022191,2]
[312171736,1705678253576,-928.69,0.00022191,2]
[312171737,1705678253586,-500.0,0.00022191,2]
[312171738,1705678253596,-661.75,0.00022191,2]
[312171739,1705678253606,-500.0,0.00022191,2]
[312171740,1705678253615,-2099.71,0.00022191,2]
[312171741,1705678253624,-500.0,0.00022191,2]
[312171742,1705678253634,-2891.79,0.00022191,2]
[312171743,1705678253643,-500.0,0.00022191,2]
[312171744,1705678253653,-855.2,0.00022191,2]
[312171745,1705678253662,-743.82,0.00022191,2]
[312171746,1705678253671,-500.0,0.00022191,2]
[312171747,1705678253681,-500.0,0.00022191,2]
[312171748,1705678253690,-500.0,0.00022191,2]
[312171749,1705678253699,-500.0,0.00022191,2]
[312171750,1705678253708,-1258.67,0.00022191,2]
[312171751,1705678253718,-500.0,0.00022191,2]
[312171752,1705678253728,-330.0427332,0.00022191,2]
[312171753,1705678253737,-1755.66648855,0.0002224,2]
[312171754,1705678253746,-1000.0,0.00022272,2]
[312171755,1705678253756,-11127.45990603,0.00022294,2]
[312171756,1705678253766,-474.9,0.00022307,2]
[312171757,1705678253775,-150.0,0.0002232,2]
[312171758,1705678253786,-150.0,0.00022322,2]
[312171759,1705678253795,-160.29,0.00022335,2]
[312171760,1705678253804,-153.14,0.0002235,2]
[312171761,1705678253815,-11127.45990603,0.00022405,2]
[312171762,1705678253824,-302.94,0.00022442,2]
[312171763,1705678253834,-347.28,0.00022445,2]
[312171764,1705678253843,-1755.66648855,0.00022452,2]
[312171765,1705678253853,-500.0,0.00022464,2]
[312171766,1705678253863,-500.0,0.00022464,2]
[312171767,1705678253872,-151.0,0.00022465,7]
[312171768,1705678253882,-151.0,0.00022465,7]
[312171769,1705678253891,-151.0,0.00022465,7]
[312171770,1705678253901,-151.0,0.00022465,7]
[312171771,1705678253910,-151.0,0.00022465,7]
[312171772,1705678253920,-341.167574,0.00022465,7]
[312171773,1705678253929,-341.167574,0.00022465,7]
[312171774,1705678253939,-151.0,0.00022465,7]
[312171775,1705678253949,-1174.310812,0.00022465,7]
[312171776,1705678253959,-1174.310812,0.00022465,7]
[312171777,1705678253969,-151.0,0.00022465,7]
[312171778,1705678253979,-151.0,0.00022465,7]
[312171779,1705678253988,-1922.337468,0.00022465,7]
[312171780,1705678253998,-1922.337468,0.00022465,7]
[312171781,1705678254008,-151.0,0.00022465,7]
[312171782,1705678254018,-151.0,0.00022465,7]
[312171783,1705678254029,-151.0,0.00022465,7]
[312171784,1705678254041,-151.0,0.00022465,7]
[312171785,1705678254051,-151.0,0.00022465,7]
[312171786,1705678254062,-265.810857,0.00022465,7]
[312171787,1705678254072,-265.810857,0.00022465,7]
[312171788,1705678254082,-919.850186,0.00022465,7]
[312171789,1705678254092,-919.850186,0.00022465,7]
[312171790,1705678254102,-767.336428,0.00022465,7]
[312171791,1705678254112,-767.336428,0.00022465,7]
[312171792,1705678254122,-340.117484,0.00022465,7]
[312171793,1705678254132,-340.117484,0.00022465,7]
[312171794,1705678254142,-151.0,0.00022465,7]
[312171795,1705678254153,-151.0,0.00022465,7]
[312171796,1705678254163,-155.35928,0.00022465,7]
[312171797,1705678254173,-151.0,0.00022465,7]
[312171798,1705678254183,-441.834862,0.00022465,7]
[312171799,1705678254193,-441.834862,0.00022465,7]
[312171800,1705678254202,-177.606393,0.00022465,7]
[312171801,1705678254212,-151.0,0.00022465,7]
[312171802,1705678254221,-151.0,0.00022465,7]
[312171803,1705678254232,-151.0,0.00022465,7]
[312171804,1705678254242,-10000.0,0.00022465,7]
[312171805,1705678254251,-10000.0,0.00022465,7]
[312171806,1705678254261,-10000.0,0.00022465,7]
[312171807,1705678254270,-151.0,0.00022465,7]
[312171808,1705678254280,-151.0,0.00022465,7]
[312171809,1705678254289,-151.0,0.00022465,7]
[312171810,1705678254299,-6207.719811,0.00022465,7]
[312171811,1705678254309,-6207.719811,0.00022465,7]
[312171812,1705678254321,-151.0,0.00022465,7]
[312171813,1705678254330,-7947.432464,0.00022465,7]
[312171814,1705678254339,-7947.432464,0.00022465,7]
[312171815,1705678254349,-500.0,0.00022465,2]
[312171816,1705678254358,-500.0,0.00022465,2]
[312171817,1705678254368,-500.0,0.00022465,2]
[312171818,1705678254378,-500.0,0.00022465,2]
[312171819,1705678254387,-500.0,0.00022465,2]
[312171820,1705678254397,-500.0,0.00022465,2]
[312171821,1705678254406,-509.62,0.00022465,2]
[312171822,1705678254416,-500.0,0.00022465,2]
[312171823,1705678254426,-500.0,0.00022465,2]
[312171824,1705678254436,-500.0,0.00022465,2]
[312171825,1705678254447,-500.0,0.00022465,2]
[312171826,1705678254457,-500.0,0.00022465,2]
[312171827,1705678254560,-500.0,0.00022465,2]
[312171828,1705678254572,-500.0,0.00022465,2]
[312171829,1705678254582,-500.0,0.00022465,2]
[312171830,1705678254591,-716.93,0.00022465,2]
[312171831,1705678254601,-500.0,0.00022465,2]
[312171832,1705678254611,-500.0,0.00022465,2]
[312171833,1705678254621,-500.0,0.00022465,2]
[312171834,1705678254630,-500.0,0.00022465,2]
[312171835,1705678254640,-651.75,0.00022465,2]
[312171836,1705678254650,-500.0,0.00022465,2]
[312171837,1705678254659,-747.07,0.00022465,2]
[312171838,1705678254669,-500.0,0.00022465,2]
[312171839,1705678254679,-500.0,0.00022465,2]
[312171840,1705678254688,-500.0,0.00022465,2]
[312171841,1705678254697,-500.0,0.00022465,2]
[312171842,1705678254707,-500.0,0.00022465,2]
[312171843,1705678254716,-500.0,0.00022465,2]
[312171844,1705678254725,-500.0,0.00022465,2]
[312171845,1705678254734,-500.0,0.00022465,2]
[312171846,1705678254744,-500.0,0.00022465,2]
[312171847,1705678254753,-536.44,0.00022465,2]
[312171848,1705678254762,-500.0,0.00022465,2]
[312171849,1705678254772,-500.0,0.00022465,2]
[312171850,1705678254781,-500.0,0.00022465,2]
[312171851,1705678254791,-500.0,0.00022465,2]
[312171852,1705678254801,-500.0,0.00022465,2]
[312171853,1705678254810,-838.95,0.00022465,2]
[312171854,1705678254821,-500.0,0.00022465,2]
[312171855,1705678254830,-500.0,0.00022465,2]
[312171856,1705678254840,-500.0,0.00022465,2]
[312171857,1705678254849,-500.0,0.00022465,2]
[312171858,1705678254859,-208.42620373,0.00022465,2]
[312171859,1705678254868,-500.0,0.00022465,2]
[312171860,1705678254877,-500.0,0.00022465,2]
[312171861,1705678254886,-500.0,0.00022465,2]
[312171862,1705678254896,-500.0,0.00022465,2]
[312171863,1705678254905,-500.0,0.00022465,2]
[312171864,1705678254915,-500.0,0.00022465,2]
[312171865,1705678254924,-500.0,0.00022465,2]
[312171866,1705678254933,-500.0,0.00022465,2]
[312171867,1705678254943,-500.0,0.00022465,2]
[312171868,1705678254952,-500.0,0.00022465,2]
[312171869,1705678254961,-500.0,0.00022465,2]
[312171870,1705678254970,-500.0,0.00022465,2]
[312171871,1705678254979,-500.0,0.00022465,2]
[312171872,1705678254989,-500.0,0.00022465,2]
[312171873,1705678254998,-500.0,0.00022465,2]
[312171874,1705678255008,-348.00711053,0.00022465,2]
[312171875,1705678255021,-500.0,0.00022465,2]
[312171876,1705678255031,-500.0,0.00022465,2]
[312171877,1705678255041,-500.0,0.00022465,2]
[312171878,1705678255051,-732.74,0.00022465,2]
[312171879,1705678255061,-500.0,0.00022465,2]
[312171880,1705678255072,-500.0,0.00022465,2]
[312171881,1705678255082,-254.61,0.00022465,2]
[312171882,1705678255092,-500.0,0.00022465,2]
[312171883,1705678255102,-500.0,0.00022465,2]
[312171884,1705678255113,-500.0,0.00022465,2]
[312171885,1705678255122,-529.84,0.00022465,2]
[312171886,1705678255131,-500.0,0.00022465,2]
[312171887,1705678255141,-500.0,0.00022465,2]
[312171888,1705678255150,-616.69,0.00022465,2]
[312171889,1705678255160,-500.0,0.00022465,2]
[312171890,1705678255169,-500.0,0.00022465,2]
[312171891,1705678255179,-566.78325832,0.00022465,2]
[312171892,1705678255188,-532.39997991,0.00022465,2]
[312171893,1705678255198,-500.0,0.00022465,2]
[312171894,1705678255207,-677.43,0.00022465,2]
[312171895,1705678255216,-500.0,0.00022465,2]
[312171896,1705678255225,-500.0,0.00022465,2]
[312171897,1705678255234,-608.76,0.00022465,2]
[312171898,1705678255244,-500.0,0.00022465,2]
[312171899,1705678255253,-500.0,0.00022465,2]
[312171900,1705678255262,-500.0,0.00022465,2]
[312171901,1705678255272,-500.0,0.00022465,2]
[312171902,1705678255281,-500.0,0.00022465,2]
[312171903,1705678255290,-500.0,0.00022465,2]
[312171904,1705678255299,-500.0,0.00022465,2]
[312171905,1705678255308,-500.0,0.00022465,2]
[312171906,1705678255319,-500.0,0.00022465,2]
[312171907,1705678255329,-500.0,0.00022465,2]
[312171908,1705678255339,-500.0,0.00022465,2]
[312171909,1705678255348,-1029.35,0.00022465,2]
[312171910,1705678255358,-500.0,0.00022465,2]
[312171911,1705678255368,-722.37,0.00022465,2]
[312171912,1705678255378,-500.0,0.00022465,2]
[312171913,1705678255387,-679.74,0.00022465,2]
[312171914,1705678255397,-500.0,0.00022465,2]
[312171915,1705678255406,-500.0,0.00022465,2]
[312171916,1705678255416,-500.0,0.00022465,2]
[312171917,1705678255425,-500.0,0.00022465,2]
[312171918,1705678255435,-500.0,0.00022465,2]
[312171919,1705678255444,-500.0,0.00022465,2]
[312171920,1705678255453,-500.0,0.00022465,2]
[312171921,1705678255463,-500.0,0.00022465,2]
[312171922,1705678255472,-500.0,0.00022465,2]
[312171923,1705678255481,-762.34,0.00022465,2]
[312171924,1705678255491,-500.0,0.00022465,2]
[312171925,1705678255500,-500.0,0.00022465,2]
[312171926,1705678255510,-500.0,0.00022465,2]
[312171927,1705678255519,-805.61,0.00022465,2]
[312171928,1705678255528,-500.0,0.00022465,2]
[312171929,1705678255537,-1070.38,0.00022465,2]
[312171930,1705678255547,-1119.49,0.00022465,2]
[312171931,1705678255556,-500.0,0.00022465,2]
[312171932,1705678255568,-500.0,0.00022465,2]
[312171933,1705678255576,-500.0,0.00022465,2]
[312171934,1705678255586,-500.0,0.00022465,2]
[312171935,1705678255595,-500.0,0.00022465,2]
[312171936,1705678255604,-500.0,0.00022465,2]
[312171937,1705678255613,-500.0,0.00022465,2]
[312171938,1705678255622,-500.0,0.00022465,2]
[312171939,1705678255631,-755.31,0.00022465,2]
[312171940,1705678255640,-500.0,0.00022465,2]
[312171941,1705678255649,-515.29,0.00022465,2]
[312171942,1705678255659,-545.56,0.00022465,2]
[312171943,1705678255669,-500.0,0.00022465,2]
[312171944,1705678255678,-500.0,0.00022465,2]
[312171945,1705678255687,-500.0,0.00022465,2]
[312171946,1705678255697,-668.31,0.00022465,2]
[312171947,1705678255706,-500.0,0.00022465,2]
[312171948,1705678255715,-500.0,0.00022465,2]
[312171949,1705678255724,-625.23,0.00022465,2]
[312171950,1705678255733,-500.0,0.00022465,2]
[312171951,1705678255743,-500.0,0.00022465,2]
[312171952,1705678255752,-649.83,0.00022465,2]
[312171953,1705678255761,-518.9,0.00022465,2]
[312171954,1705678255770,-554.14,0.00022465,2]
[312171955,1705678255780,-500.0,0.00022465,2]
[312171956,1705678255789,-500.0,0.00022465,2]
[312171957,1705678255799,-800.49,0.00022465,2]
[312171958,1705678255808,-500.0,0.00022465,2]
[312171959,1705678255817,-500.0,0.00022465,2]
[312171960,1705678255827,-500.0,0.00022465,2]
[312171961,1705678255836,-585.19,0.00022465,2]
[312171962,1705678255845,-500.0,0.00022465,2]
[312171963,1705678255854,-189.46981047,0.00022465,2]
[312171964,1705678255863,-500.0,0.00022465,2]
[312171965,1705678255873,-602.84,0.00022465,2]
[312171966,1705678255882,-500.0,0.00022465,2]
[312171967,1705678255891,-500.0,0.00022465,2]
[312171968,1705678255900,-500.0,0.00022465,2]
[312171969,1705678255909,-500.0,0.00022465,2]
[312171970,1705678255918,-500.0,0.00022465,2]
[312171971,1705678255928,-755.01,0.00022465,2]
[312171972,1705678255937,-500.0,0.00022465,2]
[312171973,1705678255946,-647.57,0.00022465,2]
[312171974,1705678255955,-500.0,0.00022465,2]
[312171975,1705678255964,-500.0,0.00022465,2]
[312171976,1705678255973,-945.29,0.00022465,2]
[312171977,1705678255982,-500.0,0.00022465,2]
[312171978,1705678255991,-500.0,0.00022465,2]
[312171979,1705678256001,-591.96,0.00022465,2]
[312171980,1705678256010,-616.28,0.00022465,2]
[312171981,1705678256019,-500.0,0.00022465,2]
[312171982,1705678256029,-500.0,0.00022465,2]
[312171983,1705678256040,-500.0,0.00022465,2]
[312171984,1705678256049,-500.0,0.00022465,2]
[312171985,1705678256058,-714.49,0.00022465,2]
[312171986,1705678256068,-500.0,0.00022465,2]
[312171987,1705678256078,-500.0,0.00022465,2]
[312171988,1705678256086,-511.42,0.00022465,2]
[312171989,1705678256096,-560.71511756,0.00022465,2]
[312171990,1705678256105,-500.0,0.00022465,2]
[312171991,1705678256116,-500.0,0.00022465,2]
[312171992,1705678256125,-500.0,0.00022465,2]
[312171993,1705678256135,-794.31,0.00022465,2]
[312171994,1705678256144,-715.35,0.00022465,2]
[312171995,1705678256153,-500.0,0.00022465,2]
[312171996,1705678256161,-500.0,0.00022465,2]
[312171997,1705678256171,-500.0,0.00022465,2]
[312171998,1705678256180,-500.0,0.00022465,2]
[312171999,1705678256189,-500.0,0.00022465,2]
[312172000,1705678256198,-500.0,0.00022465,2]
[312172001,1705678256208,-500.0,0.00022465,2]
[312172002,1705678256217,-591.89,0.00022465,2]
[312172003,1705678256226,-500.0,0.00022465,2]
[312172004,1705678256235,-500.0,0.00022465,2]
[312172005,1705678256245,-500.0,0.00022465,2]
[312172006,1705678256254,-727.12,0.00022465,2]
[312172007,1705678256263,-872.21,0.00022465,2]
[312172008,1705678256273,-500.0,0.00022465,2]
[312172009,1705678256282,-500.0,0.00022465,2]
[312172010,1705678256291,-500.0,0.00022465,2]
[312172011,1705678256300,-717.07,0.00022465,2]
[312172012,1705678256310,-500.0,0.00022465,2]
[312172013,1705678256321,-589.35,0.00022465,2]
[312172014,1705678256331,-500.0,0.00022465,2]
[312172015,1705678256341,-500.0,0.00022465,2]
[312172016,1705678256350,-500.0,0.00022465,2]
[312172017,1705678256360,-838.1,0.00022465,2]
[312172018,1705678256370,-699.17,0.00022465,2]
[312172019,1705678256379,-1054.42,0.00022465,2]
[312172020,1705678256389,-500.0,0.00022465,2]
[312172021,1705678256399,-500.0,0.00022465,2]
[312172022,1705678256409,-477.36584841,0.00022465,2]
[312172023,1705678256418,-862.35,0.00022465,2]
[312172024,1705678256427,-519.77,0.00022465,2]
[312172025,1705678256436,-500.0,0.00022465,2]
[312172026,1705678256445,-500.0,0.00022465,2]
[312172027,1705678256454,-500.0,0.00022465,2]
[312172028,1705678256463,-500.0,0.00022465,2]
[312172029,1705678256473,-903.53,0.00022465,2]
[312172030,1705678256483,-695.15,0.00022465,2]
[312172031,1705678256492,-507.74,0.00022465,2]
[312172032,1705678256501,-500.0,0.00022465,7]
[312172033,1705678256510,-500.0,0.00022465,2]
[312172034,1705678256520,-500.0,0.00022465,2]
[312172035,1705678256529,-500.0,0.00022465,2]
[312172036,1705678256538,-545.49,0.00022465,2]
[312172037,1705678256547,-500.0,0.00022465,2]
[312172038,1705678256556,-500.0,0.00022465,2]
[312172039,1705678256567,-500.0,0.00022465,2]
[312172040,1705678256578,-563.38,0.00022465,2]
[312172041,1705678256587,-635.14,0.00022465,2]
[312172042,1705678256596,-500.0,0.00022465,2]
[312172043,1705678256606,-679.28,0.00022465,2]
[312172044,1705678256615,-500.0,0.00022465,2]
[312172045,1705678256624,-500.0,0.00022465,2]
[312172046,1705678256634,-500.0,0.00022465,2]
[312172047,1705678256643,-500.0,0.00022465,2]
[312172048,1705678256652,-518.65,0.00022465,2]
[312172049,1705678256661,-659.28,0.00022465,2]
[312172050,1705678256670,-761.1,0.00022465,2]
[312172051,1705678256679,-500.0,0.00022465,2]
[312172052,1705678256688,-750.39,0.00022465,2]
[312172053,1705678256697,-500.0,0.00022465,2]
[312172054,1705678256707,-500.0,0.00022465,2]
[312172055,1705678256716,-680.1,0.00022465,2]
[312172056,1705678256725,-579.31,0.00022465,2]
[312172057,1705678256734,-500.0,0.00022465,2]
[312172058,1705678256743,-500.0,0.00022465,2]
[312172059,1705678256753,-627.26,0.00022465,2]
[312172060,1705678256762,-766.95,0.00022465,2]
[312172061,1705678256772,-849.95,0.00022465,2]
[312172062,1705678256781,-500.0,0.00022465,2]
[312172063,1705678256790,-500.0,0.00022465,2]
[312172064,1705678256799,-588.93,0.00022465,2]
[312172065,1705678256808,-500.0,0.00022465,2]
[312172066,1705678256820,-500.0,0.00022465,2]
[312172067,1705678256830,-500.0,0.00022465,2]
[312172068,1705678256839,-829.52,0.00022465,2]
[312172069,1705678256849,-2495.55,0.00022465,2]
[312172070,1705678256859,-788.2,0.00022465,2]
[312172071,1705678256868,-731.33,0.00022465,2]
[312172072,1705678256878,-500.0,0.00022465,2]
[312172073,1705678256887,-500.0,0.00022465,2]
[312172074,1705678256896,-500.0,0.00022465,2]
[312172075,1705678256906,-500.0,0.00022465,2]
[312172076,1705678256915,-500.0,0.00022465,2]
[312172077,1705678256924,-634.89,0.00022465,2]
[312172078,1705678256934,-791.03,0.00022465,2]
[312172079,1705678256943,-500.0,0.00022465,2]
[312172080,1705678256952,-500.0,0.00022465,2]
[312172081,1705678256961,-1759.05,0.00022465,2]
[312172082,1705678256970,-645.26,0.00022465,2]
[312172083,1705678256979,-500.0,0.00022465,2]
[312172084,1705678256989,-500.0,0.00022465,2]
[312172085,1705678256998,-687.51,0.00022465,2]
[312172086,1705678257007,-500.0,0.00022465,2]
[312172087,1705678257017,-500.0,0.00022465,2]
[312172088,1705678257026,-542.98,0.00022465,2]
[312172089,1705678257039,-713.71,0.00022465,2]
[312172090,1705678257048,-684.71,0.00022465,2]
[312172091,1705678257057,-500.0,0.00022465,2]
[312172092,1705678257069,-911.28,0.00022465,2]
[312172093,1705678257079,-616.72,0.00022465,2]
[312172094,1705678257088,-500.0,0.00022465,2]
[312172095,1705678257099,-500.0,0.00022465,2]
[312172096,1705678257109,-500.0,0.00022465,2]
[312172097,1705678257118,-889.99,0.00022465,2]
[312172098,1705678257129,-577.21,0.00022465,2]
[312172099,1705678257139,-508.68,0.00022465,2]
[312172100,1705678257148,-500.0,0.00022465,2]
[312172101,1705678257157,-549.42,0.00022465,2]
[312172102,1705678257166,-957.59,0.00022465,2]
[312172103,1705678257177,-500.0,0.00022465,2]
[312172104,1705678257187,-1588.65,0.00022465,2]
[312172105,1705678257196,-500.0,0.00022465,2]
[312172106,1705678257206,-500.0,0.00022465,2]
[312172107,1705678257215,-500.0,0.00022465,2]
[312172108,1705678257225,-500.0,0.00022465,2]
[312172109,1705678257235,-874.67,0.00022465,2]
[312172110,1705678257245,-500.0,0.00022465,2]
[312172111,1705678257255,-500.0,0.00022465,2]
[312172112,1705678257266,-500.0,0.00022465,2]
[312172113,1705678257276,-500.0,0.00022465,2]
[312172114,1705678257287,-500.0,0.00022465,2]
[312172115,1705678257297,-500.0,0.00022465,2]
[312172116,1705678257307,-500.0,0.00022465,2]
[312172117,1705678257324,-500.0,0.00022465,2]
[312172118,1705678257334,-973.68,0.00022465,2]
[312172119,1705678257345,-2586.47,0.00022465,2]
[312172120,1705678257356,-512.93,0.00022465,2]
[312172121,1705678257368,-798.26,0.00022465,2]
[312172122,1705678257378,-500.0,0.00022465,2]
[312172123,1705678257388,-163.02,0.00022465,2]
[312172124,1705678257398,-1209.83,0.00022465,2]
[312172125,1705678257408,-642.84,0.00022465,2]
[312172126,1705678257418,-500.0,0.00022465,2]
[312172127,1705678257427,-500.0,0.00022465,2]
[312172128,1705678257437,-936.38,0.00022465,2]
[312172129,1705678257447,-500.0,0.00022465,2]
[312172130,1705678257457,-1155.52,0.00022465,2]
[312172131,1705678257467,-508.85,0.00022465,2]
[312172132,1705678257477,-500.0,0.00022465,2]
[312172133,1705678257486,-500.0,0.00022465,2]
[312172134,1705678257496,-874.6,0.00022465,2]
[312172135,1705678257505,-1683.81,0.00022465,2]
[312172136,1705678257515,-500.0,0.00022465,2]
[312172137,1705678257525,-1101.12,0.00022465,2]
[312172138,1705678257535,-1902.57,0.00022465,2]
[312172139,1705678257544,-500.0,0.00022465,2]
[312172140,1705678257555,-1649.75,0.00022465,2]
[312172141,1705678257569,-500.0,0.00022465,2]
[312172142,1705678257581,-500.0,0.00022465,2]
[312172143,1705678257590,-1427.46,0.00022465,2]
[312172144,1705678257600,-500.0,0.00022465,2]
[312172145,1705678257610,-500.0,0.00022465,2]
[312172146,1705678257622,-693.46,0.00022465,2]
[312172147,1705678257632,-782.46,0.00022465,2]
[312172148,1705678257642,-2523.58,0.00022465,2]
[312172149,1705678257652,-798.73,0.00022465,2]
[312172150,1705678257661,-500.0,0.00022465,2]
[312172151,1705678257671,-2927.77,0.00022465,2]
[312172152,1705678257680,-500.0,0.00022465,2]
[312172153,1705678257689,-500.0,0.00022465,2]
[312172154,1705678257699,-500.0,0.00022465,2]
[312172155,1705678257708,-558.05,0.00022465,2]
[312172156,1705678257718,-1720.68,0.00022465,2]
[312172157,1705678257727,-1245.53,0.00022465,2]
[312172158,1705678257736,-500.0,0.00022465,2]
[312172159,1705678257746,-1313.85,0.00022465,2]
[312172160,1705678257755,-500.0,0.00022465,2]
[312172161,1705678257765,-376.02138658,0.00022465,2]
[312172162,1705678257774,-1065.88,0.00022465,2]
[312172163,1705678257783,-500.0,0.00022465,2]
[312172164,1705678257793,-377.83660391,0.00022465,2]
[312172165,1705678257803,-1751.08,0.00022465,2]
[312172166,1705678257814,-652.01,0.00022465,2]
[312172167,1705678257827,-500.0,0.00022465,2]
[312172168,1705678257837,-500.0,0.00022465,2]
[312172169,1705678257846,-500.0,0.00022465,2]
[312172170,1705678257856,-616.53,0.00022465,2]
[312172171,1705678257866,-500.0,0.00022465,2]
[312172172,1705678257876,-854.13,0.00022465,2]
[312172173,1705678257886,-4654.98,0.00022465,2]
[312172174,1705678257896,-1355.37,0.00022465,2]
[312172175,1705678257906,-500.0,0.00022465,2]
[312172176,1705678257915,-688.22,0.00022465,2]
[312172177,1705678257925,-500.0,0.00022465,2]
[312172178,1705678257935,-500.0,0.00022465,2]
[312172179,1705678257944,-861.68,0.00022465,2]
[312172180,1705678257954,-614.59,0.00022465,2]
[312172181,1705678257964,-723.49,0.00022465,2]
[312172182,1705678257973,-500.0,0.00022465,2]
[312172183,1705678257983,-899.05,0.00022465,2]
[312172184,1705678257993,-500.0,0.00022465,2]
[312172185,1705678258002,-4897.22,0.00022465,2]
[312172186,1705678258012,-500.0,0.00022465,2]
[312172187,1705678258025,-1831.94,0.00022465,2]
[312172188,1705678258035,-852.38,0.00022465,2]
[312172189,1705678258044,-500.0,0.00022465,2]
[312172190,1705678258053,-705.55,0.00022465,2]
[312172191,1705678258067,-715.8,0.00022465,2]
[312172192,1705678258077,-1635.03,0.00022465,2]
[312172193,1705678258087,-544.37,0.00022465,2]
[312172194,1705678258096,-952.15,0.00022465,2]
[312172195,1705678258106,-757.76,0.00022465,2]
[312172196,1705678258116,-1958.54,0.00022465,2]
[312172197,1705678258126,-500.0,0.00022465,2]
[312172198,1705678258135,-975.91,0.00022465,2]
[312172199,1705678258145,-500.0,0.00022465,2]
[312172200,1705678258155,-2022.58,0.00022465,2]
[312172201,1705678258165,-500.0,0.00022465,2]
[312172202,1705678258174,-331.73861548,0.00022465,2]
[312172203,1705678258890,-369.93138452,0.00022465,2]
[312172204,1705678258901,-368.28725137,0.00022465,2]
[312172205,1705678258913,-510.94642236,0.00022465,2]
[312172206,1705678258925,-5615.26632627,0.00022465,2]
[312172207,1705678258934,-13.10878277,0.00022465,2]
[312172208,1705678258946,-465.55918947,0.00022465,2]
[312172209,1705678258991,-500.0,0.00021917,2]
[312172210,1705678259001,-740.90202776,0.00022465,2]
[312172211,1705678259010,-366.84717224,0.00022465,2]
[312172212,1705678259027,-886.31282776,0.00022465,2]
[312172213,1705678259037,-500.0,0.00022465,2]
[312172214,1705678259046,-1300.08,0.00022465,2]
[312172215,1705678259058,-3234.69,0.00022465,2]
[312172216,1705678259069,-500.0,0.00022465,2]
[312172217,1705678259079,-500.0,0.00022465,2]
[312172218,1705678259089,-9572.5,0.00022465,2]
[312172219,1705678259100,-565.57,0.00022465,2]
[312172220,1705678259109,-7806.92,0.00022465,2]
[312172221,1705678259122,-500.0,0.00022465,2]
[312172222,1705678259132,-816.31,0.00022465,2]
[312172223,1705678259141,-2361.38,0.00022465,2]
[312172224,1705678259152,-1402.34,0.00022465,2]
[312172225,1705678259162,-500.0,0.00022465,2]
[312172226,1705678259173,-500.0,0.00022465,2]
[312172227,1705678259183,-2376.67,0.00022465,2]
[312172228,1705678259194,-500.0,0.00022465,2]
[312172229,1705678259204,-500.0,0.00022465,2]
[312172230,1705678259216,-534.94,0.00022465,2]
[312172231,1705678259225,-610.32,0.00022465,2]
[312172232,1705678259235,-591.69,0.00022465,2]